Workbook

Sheet KORTTI
B1: Elina Liikala | E1: 9.12.1972
B2: SUPERPESIS | E2: Runkosarja | I2: Kärkilyönnit (KL), pesänvälit | P2: Ylempi loppusarja | U2: Alempi loppusarja | Z2: Arvo-ottelut ja mitalit | AF2: Runkosarjan jälkeen
B3: Vuosi | C3: Sija | D3: Seura | E3: OTT | F3: KUN | G3: LÖI | H3: TOI | I3: KL | J3: 0 > 1 | K3: 1 > 2 | L3: 2 > 3 | M3: 3 > k | N3: KL-% | P3: OTT | Q3: KUN | R3: LÖI | S3: TOI | T3: KL | U3: OTT | V3: KUN | W3: LÖI | X3: TOI | Y3: KL | Z3: IL | AA3: LL | AB3: Halli | AC3: K | AD3: H | AE3: P
B4: 1991 | C4: 11. | D4: VäVi | E4: 22 | F4: 0 | G4: 9 | H4: 11 | I4: 73 | J4: 23 | K4: 30 | L4: 11 | M4: =SUM(F4+G4) -> 9 | N4: 52.2 % | O4: =PRODUCT(I4/N4) -> 139.8467433 | AF4: superpesiskarsinta
B5: 1992 | C5: 11. | D5: VäVi | E5: 22 | F5: 0 | G5: 1 | H5: 21 | I5: 82 | J5: 46 | K5: 19 | L5: 16 | M5: =SUM(F5+G5) -> 1 | N5: 51.7 % | O5: =PRODUCT(I5/N5) -> 158.6073501 | AF5: superpesiskarsinta
B6: 1993 | C6: 9. | D6: YJ | E6: 24 | F6: 1 | G6: 6 | H6: 27 | I6: 75 | J6: 35 | K6: 17 | L6: 16 | M6: =SUM(F6+G6) -> 7 | N6: 43.8 % | O6: 171.2328767
B7: 1994 | C7: 7. | D7: YJ | E7: 23 | F7: 0 | G7: 9 | H7: 16 | I7: 71 | J7: 21 | K7: 22 | L7: 19 | M7: 9 | N7: 47.7 % | O7: 148.8469602 | AF7: puolivälierät
B8: 1995 | C8: 7. | D8: YJ | E8: 20 | F8: 0 | G8: 3 | H8: 17 | I8: 61 | J8: 17 | K8: 25 | L8: 16 | M8: 3 | N8: 51.7 % | O8: 117.9883946 | AF8: play off
B9: 1996 | C9: 6. | D9: YJ | E9: 23 | F9: 0 | G9: 7 | H9: 14 | I9: 73 | J9: 26 | K9: 13 | L9: 27 | M9: 7 | N9: 49.7 % | O9: 146.8812877 | AF9: play off
B10: 1997 | C10: 2. | D10: Virkiä | E10: 24 | F10: 0 | G10: 5 | H10: 23 | I10: 95 | J10: 40 | K10: 27 | L10: 23 | M10: =PRODUCT(F10+G10) -> 5 | N10: 54.6 % | O10: 173.992674 | AD10: 1 | AF10: play off
B11: 1998 | C11: 8. | D11: ViVe | E11: 21 | F11: 1 | G11: 9 | H11: 15 | I11: 74 | J11: 23 | K11: 28 | L11: 13 | M11: 10 | N11: 52.1 % | O11: 142.0345489 | AF11: play off
B12: 1999 | C12: 11. | D12: ViVe | E12: 21 | F12: 0 | G12: 7 | H12: 16 | I12: 94 | J12: 12 | K12: 54 | L12: 21 | M12: 7 | N12: 53.7 % | O12: 175.0465549 | AF12: superpesiskarsinta
B13: 2000 | C13: 9. | D13: ViVe | E13: 21 | F13: 0 | G13: 5 | H13: 18 | I13: 90 | J13: 17 | K13: 52 | L13: 16 | M13: 5 | N13: 57.3 % | O13: 157.0680628 | U13: 7 | V13: 0 | W13: 6 | X13: 11 | Y13: 42 | AF13: karsintasarja
B14: 2001 | C14: 10. | D14: ViVe | E14: 24 | F14: 1 | G14: 1 | H14: 25 | I14: 98 | J14: 34 | K14: 55 | L14: 7 | M14: 2 | N14: 53.0 % | O14: 184.9056604 | U14: 7 | V14: 1 | W14: 1 | X14: 7 | Y14: 35 | AF14: karsintasarja
B15: 2002 | C15: 7. | D15: PeTo | E15: 24 | F15: 1 | G15: 12 | H15: 21 | I15: 108 | J15: 10 | K15: 50 | L15: 35 | M15: 13 | N15: 62.1 % | O15: 173.9130435 | P15: 3 | Q15: 0 | R15: 0 | S15: 1 | T15: 14 | AF15: play off
B16: 2003 | C16: 3. | D16: PeTo | E16: 19 | F16: 0 | G16: 10 | H16: 10 | I16: 63 | J16: 14 | K16: 20 | L16: 19 | M16: 10 | N16: 46.0 % | O16: 136.9565217 | P16: 12 | Q16: 0 | R16: 3 | S16: 2 | T16: 28 | AE16: 1 | AF16: play off
B17: 2004 | O17: 0
B18: 2005 | D18: ViVe | F18: suomensarja | O18: 0
B19: Yhteensä | E19: =SUM(E4:E18) -> 288 | F19: 4 | G19: 84 | H19: 234 | I19: 1057 | J19: 318 | K19: 412 | L19: 239 | M19: 88 | N19: =PRODUCT(I19/O19) -> 52.1 % | O19: =SUM(O4:O18) -> 2027.320679 | P19: =SUM(P4:P18) -> 15 | Q19: 0 | R19: 3 | S19: 3 | T19: 42 | U19: 14 | V19: 1 | W19: 7 | X19: 18 | Y19: 77 | Z19: 0 | AA19: 0 | AB19: 0 | AC19: 0 | AD19: 1 | AE19: 1
B20: Pesispörssi | D20: =SUM(F19:H19)+((I19-F19-G19)/3)+(E19/3)+(Z19*25)+(AA19*25)+(AB19*10)+(AC19*25)+(AD19*20)+(AE19*15) -> 776.0
B22: URA SUPERISSA | E22: OTT | F22: KUN | G22: LÖI | H22: TOI | I22: KL | K22: ka/L | L22: ka/T | M22: ka/KL | N22: K - % | P22: ENSIMMÄISET
B23: Runkosarja | E23: =PRODUCT(E19) -> 288 | F23: =PRODUCT(F19) -> 4 | G23: =PRODUCT(G19) -> 84 | H23: =PRODUCT(H19) -> 234 | I23: =PRODUCT(I19) -> 1057 | K23: =PRODUCT((F23+G23)/E23) -> 0.31 | L23: =PRODUCT(H23/E23) -> 0.81 | M23: =PRODUCT(I23/E23) -> 3.67 | N23: =PRODUCT(N19) -> 52.1 % | O23: =PRODUCT(O19) -> 2027.320679 | P23: Ottelu | S23: 05.05. 1991 Roihu - VäVi 10-9 | AD23: 1. ottelu | AF23: 18 v 4 kk 26 pv
B24: Ylempi loppusarja | E24: =PRODUCT(P19) -> 15 | F24: =PRODUCT(Q19) -> 0 | G24: =PRODUCT(R19) -> 3 | H24: =PRODUCT(S19) -> 3 | I24: =PRODUCT(T19) -> 42 | K24: =PRODUCT((F24+G24)/E24) -> 0.20 | L24: =PRODUCT(H24/E24) -> 0.20 | M24: =PRODUCT(I24/E24) -> 2.80 | N24: =PRODUCT(I24/O24) -> 47.2 % | O24: 89 | P24: Lyöty juoksu | S24: 05.05. 1991 Roihu - VäVi 10-9 | AD24: 1. ottelu | AF24: 18 v 4 kk 26 pv
B25: Alempi loppusarja | E25: =PRODUCT(U19) -> 14 | F25: =PRODUCT(V19) -> 1 | G25: =PRODUCT(W19) -> 7 | H25: =PRODUCT(X19) -> 18 | I25: =PRODUCT(Y19) -> 77 | K25: =PRODUCT((F25+G25)/E25) -> 0.57 | L25: =PRODUCT(H25/E25) -> 1.29 | M25: =PRODUCT(I25/E25) -> 5.50 | N25: =PRODUCT(I25/O25) -> 64.2 % | O25: 120 | P25: Tuotu juoksu | S25: 05.05. 1991 Roihu - VäVi 10-9 | AD25: 1. ottelu | AF25: 18 v 4 kk 26 pv
B26: KAIKKI | E26: =SUM(E23:E25) -> 317 | F26: =SUM(F23:F25) -> 5 | G26: =SUM(G23:G25) -> 94 | H26: =SUM(H23:H25) -> 255 | I26: =SUM(I23:I25) -> 1176 | K26: =PRODUCT((F26+G26)/E26) -> 0.31 | L26: =PRODUCT(H26/E26) -> 0.80 | M26: =PRODUCT(I26/E26) -> 3.71 | N26: 52.6 % | O26: =SUM(O23:O25) -> 2236.320679 | P26: Kunnari
B28: Seurat | D28: VäVi = Vähänkyrön Viesti (1938)
D29: YJ = Ylihärmän Junkkarit (1908)
D30: Virkiä = Lapuan Virkiä (1907)
D31: ViVe = Vimpelin Veto (1934)
D32: PeTo = Peräseinäjoen Toive (1927)
